fUSD/lending_fUSD_20250120
["ID","MTS","AMOUNT","RATE_DAILY","PERIOD"]
[349634021,1737339048436,-500.0,0.00021748,2]
[349634022,1737339048446,-500.0,0.00021748,2]
[349634024,1737339048456,-625.41,0.00021748,2]
[349634026,1737339048467,-1374.55,0.00021748,2]
[349634028,1737339048477,-1666.42,0.00021748,2]
[349634030,1737339048488,-614.07,0.00021748,2]
[349634032,1737339048498,-500.0,0.00021748,2]
[349634034,1737339048507,-500.0,0.00021748,2]
[349634037,1737339048517,-500.0,0.00021748,2]
[349634039,1737339048527,-500.0,0.00021748,2]
[349634041,1737339048536,-500.0,0.00021748,2]
[349634043,1737339048546,-1497.25,0.00021748,2]
[349634045,1737339048558,-500.0,0.00021748,2]
[349634047,1737339048570,-240.37239141,0.00021748,2]
[349634049,1737339048581,-571.85107649,0.00021748,2]
[349634051,1737339048591,-949.13,0.00021748,2]
[349634053,1737339048602,-524.5,0.00021748,2]
[349634055,1737339048612,-500.0,0.00021748,2]
[349634057,1737339048622,-500.0,0.00021748,2]
[349634059,1737339048632,-839.65,0.00021748,2]
[349634061,1737339048642,-1118.82,0.00021748,2]
[349634063,1737339048653,-500.0,0.00021748,2]
[349634065,1737339048663,-894.12,0.00021748,2]
[349634067,1737339048673,-894.56,0.00021748,2]
[349634069,1737339048684,-500.0,0.00021748,2]
[349634071,1737339048694,-591.66,0.00021748,2]
[349634073,1737339048704,-2119.31,0.00021748,2]
[349634075,1737339048714,-711.95,0.00021748,2]
[349634077,1737339048724,-609.44,0.00021748,2]
[349634079,1737339048735,-500.0,0.00021748,2]
[349634081,1737339048746,-978.46,0.00021748,2]
[349634083,1737339048756,-1492.72,0.00021748,2]
[349634085,1737339048766,-500.0,0.00021748,2]
[349634087,1737339048777,-1644.16,0.00021748,2]
[349634089,1737339048788,-500.0,0.00021748,2]
[349634091,1737339048800,-1854.46,0.00021748,2]
[349634093,1737339048811,-500.0,0.00021748,2]
[349634095,1737339048821,-500.0,0.00021748,2]
[349634097,1737339048831,-2047.77,0.00021748,2]
[349634099,1737339048842,-1095.23,0.00021748,2]
[349634101,1737339048852,-500.0,0.00021748,2]
[349634103,1737339048862,-1826.38,0.00021748,2]
[349634105,1737339048873,-755.82,0.00021748,2]
[349634107,1737339048884,-500.0,0.00021748,2]
[349634109,1737339048896,-500.0,0.00021748,2]
[349634111,1737339048906,-906.64,0.00021748,2]
[349634113,1737339048917,-1106.79,0.00021748,2]
[349634115,1737339048928,-500.0,0.00021748,2]
[349634117,1737339048939,-500.0,0.00021748,2]
[349634119,1737339048949,-2307.5,0.00021748,2]
[349634121,1737339048961,-732.16,0.00021748,2]
[349634123,1737339048972,-2029.85,0.00021748,2]
[349634125,1737339048982,-1429.58,0.00021748,2]
[349634127,1737339048993,-500.0,0.00021748,2]
[349634129,1737339049003,-690.23,0.00021748,2]
[349634131,1737339049013,-500.0,0.00021748,2]
[349634133,1737339049024,-1736.93,0.00021748,2]
[349634135,1737339049035,-597.12,0.00021748,2]
[349634156,1737339049236,-500.0,0.00021748,2]
[349634158,1737339049248,-789.86,0.00021748,2]
[349634160,1737339049258,-1803.0,0.00021748,2]
[349634162,1737339049269,-1983.48,0.00021748,2]
[349634164,1737339049280,-500.0,0.00021748,2]
[349634166,1737339049290,-500.0,0.00021748,2]
[349634168,1737339049302,-1421.85,0.00021748,2]
[349634170,1737339049314,-1383.9,0.00021748,2]
[349634172,1737339049324,-500.0,0.00021748,2]
[349634174,1737339049335,-500.0,0.00021748,2]
[349634176,1737339049344,-500.0,0.00021748,2]
[349634178,1737339049354,-500.0,0.00021748,2]
[349634180,1737339049364,-500.0,0.00021748,2]
[349634182,1737339049373,-1097.1,0.00021748,2]
[349634184,1737339049383,-656.72,0.00021748,2]
[349634186,1737339049393,-3437.22,0.00021748,2]
[349634188,1737339049403,-500.0,0.00021748,2]
[349634190,1737339049413,-500.0,0.00021748,2]
[349634192,1737339049423,-500.0,0.00021748,2]
[349634194,1737339049433,-1457.77,0.00021748,2]
[349634196,1737339049442,-500.0,0.00021748,2]
[349634198,1737339049452,-1937.12,0.00021748,2]
[349634200,1737339049462,-577.16466551,0.00021748,2]
[349634202,1737339049471,-7882.15,0.00021748,2]
[349634204,1737339049482,-1429.61,0.00021748,2]
[349634206,1737339049493,-9451.31,0.00021748,2]
[349634207,1737339049503,-500.0,0.00021748,2]
[349634209,1737339049514,-1135.25,0.00021748,2]
[349634211,1737339049524,-500.0,0.00021748,2]
[349634213,1737339049534,-500.0,0.00021748,2]
[349634216,1737339049545,-500.0,0.00021748,2]
[349634217,1737339049558,-500.0,0.00021748,2]
[349634220,1737339049568,-500.0,0.00021748,2]
[349634221,1737339049578,-500.0,0.00021748,2]
[349634223,1737339049588,-500.0,0.00021748,2]
[349634225,1737339049597,-1866.86,0.00021748,2]
[349634227,1737339049607,-2866.24,0.00021748,2]
[349634230,1737339049617,-500.0,0.00021748,2]
[349634231,1737339049628,-583.70307966,0.00021748,2]
[349634233,1737339049638,-2958.09,0.00021748,2]
[349634235,1737339049648,-5752.13,0.00021748,2]
[349634238,1737339049658,-500.0,0.00021748,2]
[349634239,1737339049667,-909.0,0.00021748,2]
[349634242,1737339049678,-500.0,0.00021748,2]
[349634243,1737339049688,-13839.16,0.00021748,2]
[349634246,1737339049698,-500.0,0.00021748,2]
[349634248,1737339049708,-764.4,0.00021748,2]
[349634250,1737339049718,-500.0,0.00021748,2]
[349634252,1737339049728,-1273.9,0.00021748,2]
[349634254,1737339049738,-500.0,0.00021748,2]
[349634256,1737339049748,-1206.94,0.00021748,2]
[349634258,1737339049757,-500.0,0.00021748,2]
[349634260,1737339049767,-500.0,0.00021748,2]
[349634262,1737339049777,-500.0,0.00021748,2]
[349634264,1737339049787,-509.25,0.00021748,2]
[349634266,1737339049800,-500.0,0.00021748,2]
[349634268,1737339049810,-500.0,0.00021748,2]
[349634270,1737339049820,-3010.06,0.00021748,2]
[349634272,1737339049830,-500.0,0.00021748,2]
[349634274,1737339049840,-8264.03,0.00021748,2]
[349634276,1737339049850,-799.62,0.00021748,2]
[349634278,1737339049860,-942.98,0.00021748,2]
[349634280,1737339049871,-500.0,0.00021748,2]
[349634282,1737339049882,-5018.31,0.00021748,2]
[349634284,1737339049892,-1725.19,0.00021748,2]
[349634286,1737339049902,-1133.71,0.00021748,2]
[349634288,1737339049912,-500.0,0.00021748,2]
[349634290,1737339049922,-6361.89,0.00021748,2]
[349634292,1737339049932,-1359.48,0.00021748,2]
[349634294,1737339049942,-1022.31,0.00021748,2]
[349634295,1737339049951,-2208.23,0.00021748,2]
[349634298,1737339049962,-3372.54,0.00021748,2]
[349634300,1737339049971,-990.52,0.00021748,2]
[349634302,1737339049981,-500.0,0.00021748,2]
[349634303,1737339049991,-2262.93,0.00021748,2]
[349634305,1737339050001,-500.0,0.00021748,2]
[349634307,1737339050010,-1310.97,0.00021748,2]
[349634309,1737339050019,-1176.84,0.00021748,2]
[349634311,1737339050029,-500.0,0.00021748,2]
[349634313,1737339050038,-1406.12,0.00021748,2]
[349634315,1737339050052,-500.0,0.00021748,2]
[349634317,1737339050061,-500.0,0.00021748,2]
[349634319,1737339050071,-150.0,0.0002175,2]
[349634321,1737339050080,-150.0,0.00021752,2]
[349634323,1737339050090,-150.99,0.00021757,2]
[349634325,1737339050100,-150.0,0.00021763,2]
[349634327,1737339050110,-150.0,0.00021765,2]
[349634329,1737339050119,-150.0,0.00021766,2]
[349634331,1737339050129,-150.0,0.00021771,2]
[349634333,1737339050139,-150.0,0.00021772,2]
[349634335,1737339050148,-150.0,0.00021777,2]
[349634337,1737339050158,-420.0,0.00021777,2]
[349634339,1737339050167,-150.0,0.0002178,2]
[349634341,1737339050177,-3000.0,0.0002178,2]
[349634343,1737339050188,-150.0,0.00021782,2]
[349634346,1737339050198,-150.0,0.00021782,2]
[349634347,1737339050208,-150.0,0.00021783,2]
[349634350,1737339050218,-150.0,0.00021786,2]
[349634351,1737339050230,-150.0,0.00021793,2]
[349634353,1737339050240,-150.0,0.00021794,2]
[349634355,1737339050250,-3604.30070932,0.000218,2]
[349634357,1737339050261,-580.05349146,0.000218,2]
[349634360,1737339050273,-150.0,0.000218,2]
[349634362,1737339050283,-1847.59544343,0.000218,2]
[349634364,1737339050293,-300.0,0.00021804,2]
[349634366,1737339050306,-150.0,0.00021805,2]
[349634368,1737339050316,-150.0,0.00021806,2]
[349634369,1737339050326,-150.0,0.00021808,2]
[349634372,1737339050336,-150.0,0.00021818,2]
[349634373,1737339050345,-500.0,0.00021824,2]
[349634374,1737339050355,-1274.593,0.00021827,2]
[349634375,1737339050363,-2034.173,0.00021827,2]
[349634376,1737339050372,-150.97,0.00021827,2]
[349634377,1737339050382,-637.297,0.00021827,2]
[349634378,1737339050391,-571.714,0.00021827,2]
[349634379,1737339050400,-1870.38,0.00021827,2]
[349634380,1737339050409,-1264.935,0.00021827,2]
[349634381,1737339050418,-911.511,0.00021827,2]
[349634382,1737339050427,-866.0,0.00021827,2]
[349634383,1737339050436,-2965.215,0.00021827,2]
[349634384,1737339050448,-541.604,0.00021827,2]
[349634386,1737339050458,-527.43,0.00021827,2]
[349634388,1737339050468,-150.26,0.00021827,2]
[349634390,1737339050478,-150.0,0.00021828,2]
[349634391,1737339050487,-1000.0,0.00021835,2]
[349634393,1737339050498,-150.0,0.00021837,2]
[349634396,1737339050509,-150.0,0.00021842,2]
[349634398,1737339050520,-150.0,0.00021845,2]
[349634400,1737339050531,-150.0,0.00021847,2]
[349634401,1737339050541,-150.0,0.00021853,2]
[349634403,1737339050554,-150.0,0.00021856,2]
[349634406,1737339050564,-150.0,0.00021859,2]
[349634408,1737339050574,-150.0,0.00021861,2]
[349634409,1737339050584,-150.0,0.00021867,2]
[349634412,1737339050595,-150.0,0.00021872,2]
[349634414,1737339050604,-150.0,0.00021873,2]
[349634416,1737339050614,-150.0,0.00021879,2]
[349634417,1737339050623,-150.0,0.00021881,2]
[349634419,1737339050633,-1038.20389259,0.00021886,2]
[349634421,1737339050643,-150.0,0.00021886,2]
[349634424,1737339050653,-25333.47349078,0.000219,2]
[349634426,1737339050663,-1847.59544343,0.000219,2]
[349634427,1737339050673,-160.94786862,0.000219,2]
[349634430,1737339050683,-5712.0757214,0.000219,3]
[349634432,1737339050693,-150.0,0.00021901,2]
[349634433,1737339050703,-150.0,0.00021902,2]
[349634435,1737339050712,-150.0,0.00021905,2]
[349634437,1737339050721,-150.0,0.00021916,2]
[349634439,1737339050731,-150.0,0.00021917,2]
[349634441,1737339050740,-1000.0,0.00021918,3]
[349634443,1737339050749,-1000.0,0.00021918,3]
[349634445,1737339050759,-1089.0,0.00021918,3]
[349634447,1737339050768,-150.0,0.00021918,2]
[349634449,1737339050778,-150.0,0.00021918,2]
[349634451,1737339050788,-150.0,0.00021919,2]
[349634453,1737339050800,-150.0,0.0002192,2]
[349634455,1737339050810,-1000.0,0.00021921,2]
[349634457,1737339050820,-1793.05,0.00021923,2]
[349634459,1737339050830,-786.26,0.00021923,2]
[349634461,1737339050840,-727.78,0.00021923,2]
[349634463,1737339050849,-2073.47,0.00021923,2]
[349634465,1737339050859,-539.91,0.00021923,2]
[349634467,1737339050869,-500.0,0.00021923,2]
[349634470,1737339050879,-726.2,0.00021923,2]
[349634471,1737339050889,-639.0,0.00021923,2]
[349634473,1737339050898,-500.0,0.00021923,2]
[349634474,1737339050907,-712.65,0.00021923,2]
[349634475,1737339050917,-500.0,0.00021923,2]
[349634476,1737339050926,-500.0,0.00021923,2]
[349634477,1737339050936,-500.0,0.00021923,2]
[349634478,1737339050946,-500.0,0.00021923,2]
[349634479,1737339050956,-500.0,0.00021923,2]
[349634480,1737339050966,-500.0,0.00021923,2]
[349634482,1737339050975,-589.44,0.00021923,2]
[349634483,1737339050985,-1522.48,0.00021923,2]
[349634485,1737339050996,-1373.63,0.00021923,2]
[349634487,1737339051005,-2880.55,0.00021923,2]
[349634489,1737339051015,-2412.13,0.00021923,2]
[349634491,1737339051025,-2916.46,0.00021923,2]
[349634493,1737339051036,-3066.35,0.00021923,2]
[349634494,1737339051050,-500.0,0.00021923,2]
[349634495,1737339051064,-548.94,0.00021923,2]
[349634496,1737339051076,-745.19,0.00021923,2]
[349634497,1737339051085,-842.95,0.00021923,2]
[349634498,1737339051096,-500.0,0.00021923,2]
[349634500,1737339051105,-506.88458536,0.00021923,2]
[349634502,1737339051115,-500.0,0.00021923,2]
[349634504,1737339051124,-1410.34,0.00021923,2]
[349634506,1737339051133,-500.0,0.00021923,2]
[349634508,1737339051143,-880.74,0.00021923,2]
[349634510,1737339051153,-1327.01,0.00021923,2]
[349634512,1737339051163,-2399.07,0.00021923,2]
[349634514,1737339051172,-1639.49,0.00021923,2]
[349634516,1737339051183,-1086.19,0.00021923,2]
[349634518,1737339051194,-218.67851771,0.00021923,2]
[349634520,1737339051210,-1263.76,0.00021923,2]
[349634521,1737339051222,-597.04,0.00021923,2]
[349634523,1737339051235,-1918.76,0.00021923,2]
[349634525,1737339051246,-1034.73,0.00021923,2]
[349634527,1737339051257,-1014.62,0.00021923,2]
[349634529,1737339051266,-1612.36,0.00021923,2]
[349634530,1737339051276,-500.0,0.00021923,2]
[349634532,1737339051286,-1729.6,0.00021923,2]
[349634533,1737339051295,-1088.36,0.00021923,2]
[349634534,1737339051307,-571.16,0.00021923,2]
[349634535,1737339051318,-1243.87,0.00021923,2]
[349634536,1737339051327,-500.0,0.00021923,2]
[349634537,1737339051337,-2216.28,0.00021923,2]
[349634538,1737339051347,-1294.64,0.00021923,2]
[349634540,1737339051356,-500.0,0.00021923,2]
[349634542,1737339051366,-253.77840588,0.00021924,2]
[349634544,1737339051375,-500.0,0.00021924,2]
[349634546,1737339051384,-500.0,0.00021924,2]
[349634548,1737339051395,-654.27,0.00021924,2]
[349634550,1737339051405,-628.58,0.00021924,2]
[349634552,1737339051414,-702.66,0.00021924,2]
[349634554,1737339051425,-500.0,0.00021924,2]
[349634556,1737339051434,-500.0,0.00021924,2]
[349634558,1737339051444,-500.0,0.00021924,2]
[349634560,1737339051454,-500.0,0.00021924,2]
[349634562,1737339051463,-1347.5,0.00021924,2]
[349634563,1737339051473,-500.0,0.00021924,2]
[349634564,1737339051482,-500.0,0.00021924,2]
[349634565,1737339051492,-502.17,0.00021924,2]
[349634566,1737339051501,-315.69379122,0.00021924,2]
[349634567,1737339051510,-500.0,0.00021924,2]
[349634568,1737339051520,-604.21,0.00021924,2]
[349634569,1737339051529,-500.0,0.00021924,2]
[349634570,1737339051539,-500.0,0.00021924,2]
[349634571,1737339051550,-500.0,0.00021924,2]
[349634572,1737339051559,-361.65277479,0.00021924,2]
[349634573,1737339051569,-605.45,0.00021924,2]
[349634574,1737339051579,-544.89,0.00021924,2]
[349634576,1737339051589,-514.67315793,0.00021924,2]
[349634578,1737339051599,-500.0,0.00021924,2]
[349634580,1737339051608,-500.0,0.00021924,2]
[349634582,1737339051618,-500.0,0.00021924,2]
[349634584,1737339051627,-500.0,0.00021924,2]
[349634586,1737339051636,-500.0,0.00021924,2]
[349634588,1737339051646,-510.96,0.00021924,2]
[349634590,1737339051656,-782.98,0.00021924,2]
[349634591,1737339051666,-150.0,0.00021925,2]
[349634593,1737339051675,-150.0,0.0002193,2]
[349634594,1737339051684,-150.0,0.0002193,2]
[349634596,1737339051694,-150.0,0.0002193,2]
[349634597,1737339051703,-617.0,0.00021931,2]
[349634599,1737339051714,-150.0,0.00021931,2]
[349634601,1737339051723,-150.0,0.00021931,2]
[349634603,1737339051732,-150.0,0.00021931,2]
[349634605,1737339051741,-157.88439205,0.00021932,10]
[349634606,1737339051751,-150.0,0.00021933,2]
[349634608,1737339051763,-154.81545328,0.00021933,2]
[349634610,1737339051773,-150.0,0.0002194,2]
[349634612,1737339051951,-150.0,0.00021952,2]
[349634613,1737339051962,-150.0,0.00021953,2]
[349634614,1737339051972,-150.0,0.00021957,2]
[349634615,1737339051982,-150.0,0.00021957,2]
[349634616,1737339051992,-150.0,0.00021959,2]
[349634617,1737339052002,-150.0,0.0002196,2]
[349634618,1737339052012,-150.0,0.00021964,2]
[349634619,1737339052022,-150.0,0.00021967,2]
[349634620,1737339052032,-150.0,0.00021969,2]
[349634621,1737339052041,-400.0,0.0002197,2]
[349634622,1737339052054,-700.0,0.0002197,2]
[349634623,1737339052064,-400.0,0.0002197,2]
[349634624,1737339052074,-700.0,0.0002197,2]
[349634625,1737339052084,-400.0,0.0002197,2]
[349634626,1737339052093,-700.0,0.0002197,2]
[349634627,1737339052104,-700.0,0.0002197,2]
[349634628,1737339052114,-400.0,0.0002197,2]
[349634629,1737339052124,-700.0,0.0002197,2]
[349634630,1737339052134,-469.32437284,0.0002197,2]
[349634631,1737339052143,-1003.94317012,0.0002197,2]
[349634632,1737339052153,-150.0,0.0002197,2]
[349634633,1737339052163,-501.0628575,0.00021973,2]
[349634634,1737339052173,-150.0,0.00021978,2]
[349634635,1737339052183,-150.0,0.0002198,2]
[349634636,1737339052193,-150.0,0.00021981,2]
[349634637,1737339052203,-174.26958964,0.00021982,2]
[349634638,1737339052215,-150.0,0.00021982,2]
[349634639,1737339052227,-150.0,0.00021983,2]
[349634640,1737339052237,-758.6463486,0.00021985,2]
[349634641,1737339052247,-758.6463486,0.00021985,2]
[349634642,1737339052258,-758.6463486,0.00021985,2]
[349634643,1737339052268,-758.6463486,0.00021985,2]
[349634644,1737339052277,-758.6463486,0.00021985,2]
[349634645,1737339052287,-202.8634049,0.00021985,2]
[349634646,1737339052298,-202.8634049,0.00021985,2]
[349634647,1737339052314,-202.8634049,0.00021985,2]
[349634648,1737339052324,-202.8634049,0.00021985,2]
[349634649,1737339052334,-202.8634049,0.00021985,2]
[349634650,1737339052344,-17786.9525263,0.00021985,2]
[349634651,1737339052354,-843.4041334,0.00021985,2]
[349634652,1737339052363,-843.4041334,0.00021985,2]
[349634653,1737339052373,-843.4041334,0.00021985,2]
[349634654,1737339052382,-843.4041334,0.00021985,2]
[349634655,1737339052392,-843.4041334,0.00021985,2]
[349634656,1737339052401,-294.3074181,0.00021985,2]
[349634657,1737339052410,-294.3074181,0.00021985,2]
[349634658,1737339052420,-294.3074181,0.00021985,2]
[349634659,1737339052430,-294.3074181,0.00021985,2]
[349634660,1737339052439,-294.3074181,0.00021985,2]
[349634661,1737339052449,-150.0,0.00021987,2]
[349634662,1737339052458,-150.0,0.00021988,2]
[349634663,1737339052467,-150.0,0.00021989,2]
[349634664,1737339052477,-500.85637065,0.00021992,2]
[349634665,1737339052487,-150.0,0.00021996,2]
[349634666,1737339052496,-2766.95674264,0.00021997,2]
[349634667,1737339052506,-150.0,0.00021998,2]
[349634668,1737339052516,-200.16405449,0.00021999,10]
[349634669,1737339052526,-500.0,0.00021999,2]
[349634670,1737339052535,-758.6463486,0.00021999,2]
[349634671,1737339052545,-202.8634049,0.00021999,2]
[349634672,1737339052561,-843.4041334,0.00021999,2]
[349634673,1737339052571,-294.3074181,0.00021999,2]
[349634674,1737339052580,-217512.16142464,0.00022,2]
[349634675,1737339052590,-7927.12090844,0.00022,2]
[349634676,1737339052600,-2365.7341838,0.00022,15]
[349634677,1737339052610,-1172987.70207013,0.00022,2]
[349634678,1737339052630,-4208.19490955,0.00022,2]
[349634679,1737339052642,-4200.04995,0.00022,2]
[349634680,1737339052655,-296.21242944,0.00022,2]
[349634681,1737339052667,-296.13443335,0.00022,2]
[349634682,1737339052678,-645.12,0.00022,2]
[349634683,1737339052690,-14848.03151067,0.00022,2]
[349634684,1737339052703,-826.63609716,0.00022,2]
[349634685,1737339052715,-452.1720929,0.00022,2]
[349634686,1737339053082,-164.271144,0.00021199,2]
[349634687,1737339053092,-1583.17088124,0.00022,2]
[349634688,1737339053103,-1109.97733375,0.00022,2]
[349634689,1737339053114,-209602.52553436,0.00022,2]
[349634690,1737339053125,-1470.51803953,0.00022,2]
[349634691,1737339053136,-1704.59805974,0.00022,2]
[349634692,1737339053148,-259.866,0.00022,2]
[349634693,1737339053159,-443.99707072,0.00022,2]
[349634694,1737339053204,-1051.96977662,0.00022,2]
[349634695,1737339053217,-6407.99999227,0.00022,2]
[349634696,1737339053232,-281.11280307,0.00022,2]
[349634697,1737339053246,-364.3703331,0.00022,2]
[349634698,1737339053259,-4501.37649062,0.00022,2]
[349634699,1737339053316,-500.0,0.00021199,2]
[349634700,1737339053325,-225.00574762,0.00022,2]
[349634701,1737339053336,-565.134902,0.00022,2]
[349634702,1737339053347,-1008.34431669,0.00022,2]
[349634703,1737339053359,-560237.70978398,0.00022,2]
[349634704,1737339053370,-273.53871738,0.00022,2]
[349634705,1737339053382,-2049.80099951,0.00022,2]
[349634706,1737339053394,-2434.43020453,0.00022,2]
[349634707,1737339053405,-622.81461482,0.00022,2]
[349634708,1737339053417,-6212.55889972,0.00022,2]
[349634709,1737339053428,-400.29687804,0.00022,2]
[349634713,1737339908530,40449.14977701,0.00012,2]
[349634714,1737339908559,60800.55977701,0.00012,2]
[349634715,1737339908587,1326687.87914799,0.00012,2]
[349634716,1737339908616,500000.0,0.00012,2]
[349634717,1737339908642,2669818.92247492,0.00012,2]
[349634725,1737340085129,108794.94939677,0.0001,2]
[349634738,1737340232702,-513.95194148,0.000154,2]
[349634739,1737340232712,-2578.0,0.000173,5]
[349634740,1737340232722,-387.71024023,0.00018,5]
[349634741,1737340232732,-933.7,0.00018805,2]
[349634742,1737340232742,-150.0,0.00019939,2]
[349634743,1737340232751,-20002.23,0.0002,2]
[349634744,1737340232760,-182.13,0.00020016,2]
[349634745,1737340232770,-167.68,0.00020034,2]
[349634746,1737340232779,-325.27,0.00020034,2]
[349634747,1737340232789,-203.57,0.00020114,2]
[349634748,1737340232798,-250.0,0.00020192,2]
[349634749,1737340232809,-1000.0,0.00020337,2]
[349634750,1737340232820,-250.0,0.00020348,2]
[349634751,1737340232829,-250.0,0.0002038,2]
[349634752,1737340232839,-850.72,0.00020695,30]
[349634753,1737340232849,-610.9,0.000208,2]
[349634754,1737340232859,-250.0,0.00020841,2]
[349634755,1737340232868,-273.28,0.00020884,2]
[349634756,1737340232877,-181.06075638,0.000209,2]
[349634757,1737340232887,-492.05,0.00020918,2]
[349634758,1737340232896,-753.93504095,0.00021,2]
[349634759,1737340238535,-1201.88159294,0.00021,2]
[349634760,1737340238547,-36999.26134061,0.00021,2]
[349634761,1737340238557,-11744.93077683,0.00021,2]
[349634868,1737340240938,-507.7,0.00021,2]
[349634869,1737340241046,-2068.52349763,0.00021,2]
[349634870,1737340241101,-5917.31816929,0.00021,2]
[349634882,1737340243328,-316.74214879,0.00020999,2]
[349634883,1737340243590,-389.7344,0.00020999,2]
[349634894,1737340246215,-293.52345121,0.00020999,2]
[349634895,1737340246225,-1117.35771975,0.00021,2]
[349634896,1737340246236,-854.93637513,0.00021,2]
[349634897,1737340246248,-2007.10619348,0.00021,2]
[349634898,1737340246381,-60183.12726689,0.00021,2]
[349634899,1737340246392,-334.51047831,0.00021,2]
[349634900,1737340246401,-933.7,0.00021069,2]
[349634901,1737340246411,-152.0,0.00021081,3]
[349634902,1737340246421,-162.40908237,0.00021098,2]
[349634903,1737340246431,-28335.1604,0.00021098,2]
[349634904,1737340246441,-9456.64977426,0.00021099,2]
[349634905,1737340246458,-7160.63492574,0.00021099,2]
[349634906,1737340246467,-1362.728,0.00021099,2]
[349634907,1737340246477,-5330.7934,0.00021099,2]
[349634908,1737340246487,-2500.0,0.00021099,2]
[349634909,1737340246497,-337.9571,0.000211,2]
[349634910,1737340246507,-1174.037,0.00021107,2]
[349634911,1737340246517,-500.0,0.00021197,2]
[349634912,1737340246526,-500.0,0.00021197,2]
[349634913,1737340246536,-500.0,0.00021197,2]
[349634914,1737340246545,-3246.68,0.00021197,2]
[349634916,1737340246555,-1349.67,0.00021197,2]
[349634918,1737340246565,-500.0,0.00021197,2]
[349634920,1737340246575,-1549.99,0.00021197,2]
[349634922,1737340246590,-500.0,0.00021197,2]
[349634924,1737340246600,-1455.67,0.00021197,2]
[349634926,1737340246610,-702.69,0.00021197,2]
[349634928,1737340246619,-2724.48,0.00021197,2]
[349634930,1737340246636,-1218.47,0.00021197,2]
[349634932,1737340246653,-3960.42,0.00021197,2]
[349634935,1737340246665,-500.0,0.00021197,2]
[349634938,1737340246675,-2016.97,0.00021197,2]
[349634941,1737340246685,-1146.65,0.00021197,2]
[349634943,1737340246695,-613.37,0.00021197,2]
[349634945,1737340246705,-1191.87,0.00021197,2]
[349634947,1737340246715,-500.0,0.00021197,2]
[349634949,1737340246725,-2996.76,0.00021197,2]
[349634951,1737340246735,-313.96142703,0.00021197,2]
[349634952,1737340246745,-500.0,0.00021197,2]
[349634955,1737340246756,-1342.19,0.00021197,2]
[349634957,1737340246766,-500.0,0.00021197,2]
[349634959,1737340246776,-500.0,0.00021197,2]
[349634961,1737340246786,-1122.43,0.00021197,2]
[349634963,1737340246796,-500.0,0.00021197,2]
[349634965,1737340246807,-500.0,0.00021197,2]
[349634967,1737340246816,-587.37,0.00021197,2]
[349634969,1737340246829,-500.0,0.00021197,2]
[349634971,1737340246838,-604.14,0.00021197,2]
[349634973,1737340246848,-318.1434901,0.00021197,2]
[349634975,1737340246857,-1274.79,0.00021198,2]
[349634977,1737340246867,-169.85559469,0.00021198,2]
[349634979,1737340246877,-500.0,0.00021198,2]
[349634981,1737340246887,-1033.14,0.00021198,2]
[349634983,1737340246897,-507.32002094,0.00021198,2]
[349634985,1737340246907,-506.73789295,0.00021198,2]
[349634987,1737340246916,-736.02,0.00021198,2]